fUST/lending_fUST_20250506
["ID","MTS","AMOUNT","RATE_DAILY","PERIOD"]
[360020952,1746483041459,-548.31,0.00020799,3]
[360020953,1746483041468,-1680.0,0.00020804,2]
[360020954,1746483041478,-151.0,0.000213,4]
[360020955,1746483041486,-1497.66307819,0.00021739,2]
[360020956,1746483041495,-949.4999989,0.0002188,2]
[360020957,1746483041504,-160.0,0.00021917,2]
[360020959,1746483041514,-500.0,0.00021918,2]
[360020961,1746483041523,-195.85263782,0.00021918,2]
[360020963,1746483041533,-49.36299684,0.00021918,2]
[360020983,1746483041709,-450.63700316,0.00021918,2]
[360020985,1746483041718,-10000.0,0.00022013,2]
[360020987,1746483041727,-854.9997182,0.00022138,2]
[360020989,1746483041736,-365.52,0.00022169,3]
[360020991,1746483041746,-500.0,0.000225,2]
[360020993,1746483041756,-500.0,0.000225,2]
[360020995,1746483041765,-500.0,0.000225,2]
[360020997,1746483041774,-613.49608928,0.000225,2]
[360020999,1746483041783,-200.13432905,0.00022503,2]
[360021001,1746483041793,-587.0,0.00022541,2]
[360021003,1746483041802,-587.0,0.00022567,2]
[360021005,1746483041811,-92.60382299,0.00022572,2]
[360021007,1746483041823,-2885.39617701,0.00022572,2]
[360021009,1746483041833,-2978.0,0.00022572,2]
[360021011,1746483041842,-2978.0,0.00022572,2]
[360021013,1746483041851,-151.0,0.000226,9]
[360021015,1746483041861,-1452.466284,0.00022608,2]
[360021017,1746483041870,-2351.0,0.00022787,2]
[360021019,1746483041879,-80.14388359,0.00023065,2]
[360021021,1746483041891,-842.42856795,0.00023065,2]
[360021222,1746483043691,-77.42754846,0.00023065,2]
[360021224,1746483043700,-279.556068,0.00023139,2]
[360021226,1746483043710,-160.0,0.00023287,2]
[360021228,1746483043719,-615.87836199,0.00023303,2]
[360021230,1746483043729,-500.0,0.00023471,2]
[360021232,1746483043738,-500.0,0.00023471,2]
[360021235,1746483043748,-607.42167495,0.00023471,2]
[360021236,1746483043757,-500.0,0.00023478,2]
[360021238,1746483043767,-406.41176796,0.00023489,2]
[360021241,1746483043776,-500.0,0.00023489,2]
[360021242,1746483043785,-348.18323385,0.00023576,2]
[360021244,1746483043795,-500.0,0.00023576,2]
[360021247,1746483043804,-501.90544638,0.00023576,2]
[360021249,1746483043814,-500.0,0.00023576,2]
[360021251,1746483043823,-500.0,0.00023576,2]
[360021268,1746483043973,-500.0,0.00023576,2]
[360021271,1746483043983,-500.0,0.00023682,2]
[360021273,1746483043993,-500.0,0.00023682,2]
[360021275,1746483044002,-510.93041603,0.00023682,2]
[360021277,1746483044012,-500.0,0.00023682,2]
[360021279,1746483044021,-500.0,0.00023682,2]
[360021281,1746483044030,-500.0,0.00023682,2]
[360021283,1746483044039,-615.87836199,0.0002381,2]
[360021285,1746483044049,-500.0,0.00023857,2]
[360021287,1746483044059,-166.1123423,0.00023868,2]
[360021289,1746483044068,-151.0,0.000239,5]
[360021291,1746483044077,-1565.33891857,0.000239,2]
[360021293,1746483044087,-894.34102138,0.00023974,2]
[360021295,1746483044097,-850.0,0.0002398,2]
[360021297,1746483044106,-1128.68539538,0.00023985,2]
[360021299,1746483044116,-26734.79794179,0.0002399,2]
[360021568,1746483046721,-1215.79491801,0.0002399,2]
[360021570,1746483046733,-1514.3573757,0.0002399,2]
[360021573,1746483046745,-3227.60610924,0.0002399,2]
[360021596,1746483046964,-40.04982386,0.0002399,2]
[360021632,1746483429928,284.6733967,0.00017969,2]
[360021634,1746483450214,3854.0606352,0.00017969,2]
[360021635,1746483460021,10000.0,0.00017969,2]
[360021636,1746483462397,-198.9032956,0.00018112,2]
[360021637,1746483480585,810.893954,0.0001797,2]
[360021638,1746483558393,250.0,0.00017933,2]
[360021639,1746483742935,-164.24972217,0.00018795,2]
[360021640,1746483742968,-217.75027783,0.00018795,2]
[360021641,1746483791747,-32.24972217,0.00018795,2]
[360021642,1746483791781,-604.75027783,0.00018871,2]
[360021643,1746483808077,-386.03494557,0.00018871,2]
[360021644,1746483812874,-132.46208526,0.00018871,2]
[360021645,1746483812910,-47.91656747,0.00018892,2]
[360021646,1746483817751,-116.3331547,0.00018892,2]
[360021647,1746483817781,-177.71078499,0.00018895,2]
[360021659,1746484004883,428.705296,0.00018095,2]
[360021660,1746484007097,-262.96551507,0.00018706,2]
[360021664,1746484068684,1467.7557264,0.00017955,2]
[360021665,1746484074167,1837.72044979,0.00018,2]
[360021667,1746484086766,-306.47082404,0.00018768,3]
[360021668,1746484091159,-8.00314269,0.00018768,3]
[360021669,1746484091191,-225.29965701,0.00018895,2]
[360021670,1746484094549,-200.0,0.00018895,2]
[360021673,1746484097789,-266.6972003,0.00018895,2]
[360021674,1746484102661,-130.2923577,0.00018895,2]
[360021675,1746484102693,-103.010442,0.00018895,2]
[360021676,1746484109812,-500.0,0.00018895,2]
[360021677,1746484114338,-266.6972003,0.00018895,2]
[360021685,1746484161128,-982.84139506,0.00018859,2]
[360021686,1746484161150,-1059.66872517,0.00018895,2]
[360021687,1746484161172,-300.0,0.00018958,2]
[360021688,1746484161194,-1200.0,0.00018959,2]
[360021689,1746484161215,-300.0,0.00018959,2]
[360021690,1746484161235,-500.0,0.00018959,2]
[360021691,1746484161256,-296.73854652,0.00018959,2]
[360021692,1746484161288,-500.0,0.00018959,2]
[360021693,1746484161323,-500.0,0.00018959,2]
[360021694,1746484161358,-500.0,0.00018959,2]
[360021695,1746484161412,-643.01377795,0.00018959,2]
[360021696,1746484161443,-270.9798554,0.00018959,2]
[360021697,1746484161473,-500.0,0.00018959,2]
[360021698,1746484161505,-500.0,0.00018959,2]
[360021699,1746484161536,-500.0,0.00018959,2]
[360021700,1746484161569,-500.0,0.00018959,2]
[360021701,1746484161625,-643.01377795,0.00018959,2]
[360021702,1746484161656,-500.0,0.00018959,2]
[360021703,1746484161690,-423.76073825,0.00018959,2]
[360021704,1746484161721,-357.67620514,0.00018959,2]
[360021705,1746484161752,-500.0,0.00018959,2]
[360021706,1746484161784,-500.0,0.00018959,2]
[360021707,1746484161820,-500.0,0.00018959,2]
[360021708,1746484161876,-643.01377795,0.00018959,2]
[360021709,1746484161909,-500.0,0.00018959,2]
[360021710,1746484161946,-500.0,0.00018959,2]
[360021711,1746484161981,-500.0,0.00018959,2]
[360021712,1746484162014,-500.0,0.00018959,2]
[360021713,1746484162073,-643.01377795,0.00018959,2]
[360021714,1746484162107,-500.0,0.00018959,2]
[360021715,1746484162144,-500.0,0.00018959,2]
[360021716,1746484162177,-500.0,0.00018959,2]
[360021717,1746484162211,-500.0,0.00018959,2]
[360021718,1746484162268,-643.01377795,0.00018959,2]
[360021719,1746484162301,-500.0,0.00018959,2]
[360021720,1746484162335,-500.0,0.00018959,2]
[360021721,1746484162392,-643.01377795,0.00018959,2]
[360021722,1746484162425,-500.0,0.00018959,2]
[360021723,1746484162458,-500.0,0.00018959,2]
[360021724,1746484162513,-643.01377795,0.00018959,2]
[360021725,1746484162725,-500.0,0.00018959,2]
[360021726,1746484162783,-643.01377795,0.00018959,2]
[360021727,1746484162840,-643.01377795,0.00018959,2]
[360021728,1746484162896,-643.01377795,0.00018959,2]
[360021729,1746484162953,-643.01377795,0.00018959,2]
[360021730,1746484163009,-643.01377795,0.00018959,2]
[360021731,1746484163062,-643.01377795,0.00018959,2]
[360021732,1746484163117,-643.01377795,0.00018959,2]
[360021733,1746484163179,-643.01377795,0.00018959,2]
[360021734,1746484163236,-643.01377795,0.00018959,2]
[360021735,1746484163292,-643.01377795,0.00018959,2]
[360021736,1746484163345,-643.01377795,0.00018959,2]
[360021737,1746484163400,-643.01377795,0.00018959,2]
[360021738,1746484163456,-643.01377795,0.00018959,2]
[360021739,1746484163511,-643.01377795,0.00018959,2]
[360021740,1746484163564,-643.01377795,0.00018959,2]
[360021741,1746484163618,-643.01377795,0.00018959,2]
[360021742,1746484163674,-643.01377795,0.00018959,2]
[360021743,1746484163729,-643.01377795,0.00018959,2]
[360021744,1746484163785,-643.01377795,0.00018959,2]
[360021745,1746484163839,-643.01377795,0.00018959,2]
[360021746,1746484163896,-643.01377795,0.00018959,2]
[360021747,1746484163954,-643.01377795,0.00018959,2]
[360021748,1746484163986,-500.0,0.00018959,2]
[360021749,1746484164020,-500.0,0.00018959,2]
[360021750,1746484164054,-406.50623911,0.00018959,2]
[360021751,1746484164112,-2010.26963415,0.00018959,2]
[360021752,1746484164171,-2010.26963415,0.00018959,2]
[360021753,1746484164228,-2010.26963415,0.00018959,2]
[360021754,1746484164286,-2010.26963415,0.00018959,2]
[360021755,1746484164343,-2010.26963415,0.00018959,2]
[360021756,1746484164399,-2010.26963415,0.00018959,2]
[360021757,1746484164454,-2010.26963415,0.00018959,2]
[360021758,1746484164512,-2010.26963415,0.00018959,2]
[360021759,1746484164570,-2010.26963415,0.00018959,2]
[360021760,1746484164630,-2010.26963415,0.00018959,2]
[360021761,1746484164687,-2010.26963415,0.00018959,2]
[360021762,1746484164743,-2010.26963415,0.00018959,2]
[360021763,1746484164802,-2010.26963415,0.00018959,2]
[360021764,1746484164863,-2010.26963415,0.00018959,2]
[360021765,1746484164921,-2010.26963415,0.00018959,2]
[360021766,1746484164980,-2010.26963415,0.00018959,2]
[360021767,1746484165036,-2010.26963415,0.00018959,2]
[360021768,1746484165088,-2010.26963415,0.00018959,2]
[360021769,1746484165142,-2010.26963415,0.00018959,2]
[360021770,1746484165196,-2010.26963415,0.00018959,2]
[360021771,1746484165248,-2010.26963415,0.00018959,2]
[360021772,1746484165301,-2010.26963415,0.00018959,2]
[360021773,1746484165354,-2018.44146193,0.00018959,2]
[360021774,1746484165407,-2018.44146193,0.00018959,2]
[360021775,1746484165459,-2018.44146193,0.00018959,2]
[360021776,1746484165510,-2018.44146193,0.00018959,2]
[360021777,1746484165563,-2018.44146193,0.00018959,2]
[360021778,1746484165615,-2018.44146193,0.00018959,2]
[360021779,1746484165666,-2018.44146193,0.00018959,2]
[360021780,1746484165716,-2018.44146193,0.00018959,2]
[360021781,1746484165768,-2018.44146193,0.00018959,2]
[360021782,1746484165820,-2018.44146193,0.00018959,2]
[360021783,1746484165869,-2018.44146193,0.00018959,2]
[360021784,1746484165923,-2018.44146193,0.00018959,2]
[360021785,1746484165980,-2018.44146193,0.00018959,2]
[360021786,1746484166032,-2018.44146193,0.00018959,2]
[360021787,1746484166084,-2018.44146193,0.00018959,2]
[360021788,1746484166138,-2018.44146193,0.00018959,2]
[360021789,1746484166168,-300.0,0.0001896,2]
[360021790,1746484166198,-300.0,0.0001896,2]
[360021791,1746484166231,-300.0,0.0001896,2]
[360021792,1746484166262,-151.0,0.0001896,2]
[360021793,1746484166293,-16566.01747967,0.0001896,2]
[360021794,1746484166808,-3317.40859836,0.0001896,2]
[360021795,1746484173137,-1816.59731574,0.00018959,2]
[360021796,1746484173184,-1816.59731574,0.00018959,2]
[360021797,1746484173232,-1816.59731574,0.00018959,2]
[360021798,1746484173277,-1816.59731574,0.00018959,2]
[360021799,1746484173323,-1816.59731574,0.00018959,2]
[360021800,1746484173369,-1816.59731574,0.00018959,2]
[360021801,1746484173417,-1816.59731574,0.00018959,2]
[360021802,1746484173462,-1816.59731574,0.00018959,2]
[360021803,1746484173509,-1816.59731574,0.00018959,2]
[360021804,1746484173557,-1816.59731574,0.00018959,2]
[360021805,1746484173604,-1816.59731574,0.00018959,2]
[360021806,1746484173650,-1816.59731574,0.00018959,2]
[360021807,1746484173698,-1816.59731574,0.00018959,2]
[360021808,1746484173744,-1816.59731574,0.00018959,2]
[360021809,1746484173793,-1816.59731574,0.00018959,2]
[360021810,1746484173815,-9448.59370508,0.0001896,2]
[360021812,1746484193013,78212.55938427,0.00018,2]
[360021869,1746484231812,-747.35141553,0.000189,2]
[360021871,1746484231824,-151.0,0.00018957,2]
[360021873,1746484231836,-629.0,0.00018958,2]
[360021875,1746484231849,-300.0,0.00018959,2]
[360021878,1746484231861,-1164.48545881,0.00018959,2]
[360021880,1746484231873,-1164.48545881,0.00018959,2]
[360021882,1746484231886,-1164.48545881,0.00018959,2]
[360021885,1746484231898,-1164.48545881,0.00018959,2]
[360021887,1746484231910,-1164.48545881,0.00018959,2]
[360021890,1746484231923,-1164.48545881,0.00018959,2]
[360021893,1746484231934,-1164.48545881,0.00018959,2]
[360021898,1746484231946,-1164.48545881,0.00018959,2]
[360021901,1746484231958,-1164.48545881,0.00018959,2]
[360021904,1746484231970,-1164.48545881,0.00018959,2]
[360021907,1746484231981,-1164.48545881,0.00018959,2]
[360021912,1746484231995,-1164.48545881,0.00018959,2]
[360021915,1746484232006,-1164.48545881,0.00018959,2]
[360021918,1746484232018,-1164.48545881,0.00018959,2]
[360021920,1746484232030,-20667.98021689,0.0001896,2]
[360021923,1746484232042,-568.99,0.00018961,3]
[360021927,1746484232054,-284.49,0.00018961,3]
[360021930,1746484232066,-853.52,0.00018961,3]
[360021935,1746484232078,-314.19083097,0.00018973,2]
[360021939,1746484232090,-500.0,0.00018973,2]
[360021943,1746484232102,-507.16219905,0.00018973,2]
[360021946,1746484232114,-500.0,0.00018973,2]
[360021949,1746484232126,-500.0,0.00018973,2]
[360021952,1746484232138,-500.0,0.00018973,2]
[360021954,1746484232150,-500.0,0.00018973,2]
[360021956,1746484232162,-500.0,0.00018973,2]
[360021959,1746484232174,-500.0,0.00018973,2]
[360021961,1746484232189,-500.0,0.00018973,2]
[360021963,1746484232200,-217.55030712,0.00018973,2]
[360021965,1746484232212,-371.36268983,0.00018973,2]
[360021967,1746484232226,-500.0,0.00018973,2]
[360021970,1746484232240,-502.67552518,0.00018973,2]
[360021972,1746484232252,-500.0,0.00018973,2]
[360021974,1746484232264,-500.0,0.00018973,2]
[360021976,1746484232276,-299.518159,0.00018973,2]
[360021979,1746484232288,-810.8189053,0.00019706,2]
[360021981,1746484232300,-100000.0,0.0001999,2]
[360021983,1746484232313,-1177.69233635,0.0002,2]
[360021986,1746484232325,-358.61581627,0.0002,2]
[360021988,1746484232337,-1181.91400946,0.0002,2]
[360021990,1746484232348,-11693.20213872,0.0002,2]
[360021992,1746484232360,-4795.10541996,0.0002,2]
[360021995,1746484232372,-151.0,0.00020326,2]
[360021997,1746484232384,-1137.98,0.00020331,3]
[360021999,1746484232395,-568.98,0.00020331,3]
[360022001,1746484232408,-7524.5410074,0.0002061,2]
[360022004,1746484232420,-420.0,0.00020666,2]
[360022006,1746484232432,-152.0,0.00020759,2]
[360022008,1746484232443,-33276.03562966,0.00020999,3]
[360022011,1746484232460,-31909.2500403,0.00020999,3]
[360022013,1746484232471,-9602.95927016,0.00021,2]
[360022281,1746484237862,-593.887584,0.00018959,2]
[360022283,1746484237872,-229.657413,0.00021,2]
[360022286,1746484237883,-3134.78542588,0.00021,2]
[360022288,1746484237895,-1009.13986329,0.00021,2]
[360022290,1746484237908,-511.09596172,0.00021,2]
[360022292,1746484237920,-594.98404894,0.00021,2]
[360022295,1746484237933,-2003.75078214,0.00021,2]
[360022297,1746484237944,-2724.46620968,0.00021,2]
[360022299,1746484237955,-5248.53637121,0.00021,2]
[360022308,1746484238278,-3967.20131492,0.00021,2]
[360022309,1746484238292,-3990.94687072,0.00021,2]
[360022310,1746484238303,-397.89386563,0.00021,2]
[360022367,1746484240365,-12097.02414191,0.00021,2]
[360022369,1746484240376,-875.258897,0.00021,2]
[360022371,1746484240387,-2069.59999999,0.00021,2]
[360022373,1746484240400,-1042.49220142,0.00021,2]
[360022388,1746484240645,-132.3010166,0.00021,2]
[360022389,1746484240657,-1469.99999989,0.00021,2]
[360022390,1746484240668,-2190.89540609,0.00021,2]
[360022391,1746484240684,-361228.33230539,0.00021,2]
[360022393,1746484240693,-500.0,0.00021,2]
[360022395,1746484240703,-267.13126037,0.00021,2]
[360022397,1746484240712,-10059.90659659,0.00021,7]
[360022553,1746484242976,-263.8513241,0.00021,7]
[360022554,1746484243062,-388.84,0.00021,7]
[360022555,1746484243152,-302.0,0.00021,7]
[360022556,1746484243165,-129393.88364671,0.00021,7]
[360022558,1746484243175,-841.77443764,0.00021,7]
[360022559,1746484243185,-2658.05110318,0.00021,7]
[360022623,1746484532876,-406.77885473,0.000189,2]
[360022624,1746484536816,-91.45542229,0.000189,2]
[360022627,1746484696041,-177.76597797,0.00019178,2]
[360022631,1746484835583,-300.0,0.000189,2]
[360022632,1746484839569,-32.15618468,0.000189,2]
[360022640,1746485060944,751.911,0.00022,30]
[360022645,1746485224142,155.0,0.00021,10]
[360022646,1746485244142,-250.0,0.00018644,2]
[360022647,1746485244165,-221.43745645,0.000189,2]
[360022648,1746485244186,-202.5992394,0.00019178,2]
[360022649,1746485245129,-66.62216086,0.00019178,2]
[360022650,1746485245164,-30.54077703,0.00019178,2]
[360022651,1746485245199,-386.0349456,0.00019522,2]
[360022652,1746485245231,-160.0,0.00019629,2]
[360022653,1746485245264,-300.0,0.00019669,2]
[360022654,1746485245297,-223.23183651,0.0001967,2]
[360022655,1746485245332,-500.0,0.0001967,2]
[360022656,1746485245367,-500.0,0.0001967,2]
[360022657,1746485245401,-255.92182445,0.0001967,2]
[360022668,1746485377809,-250.0,0.00018544,2]
[360022709,1746485431974,-268.0,0.00019374,2]
[360022711,1746485431984,-204.5017938,0.0001957,2]
[360022748,1746485432319,-655.48442693,0.0001957,2]
[360022750,1746485432329,-300.0,0.00019668,2]
[360022752,1746485432339,-24643.36459943,0.00019669,2]
[360022754,1746485432351,-2000.0,0.00019669,2]
[360023324,1746485438045,-150.0,0.000189,2]
[360023325,1746485438055,-359.93072672,0.00019668,2]
[360023326,1746485438064,-500.0,0.00019668,2]
[360023327,1746485438074,-500.0,0.00019668,2]
[360023328,1746485438083,-603.87015621,0.00019668,2]
[360023329,1746485438093,-500.0,0.00019668,2]
[360023331,1746485438105,-626.57896546,0.00019668,2]
[360023332,1746485438120,-500.0,0.00019668,2]
[360023334,1746485438132,-500.0,0.00019668,2]
[360023336,1746485438141,-500.0,0.00019668,2]
[360023338,1746485438151,-500.0,0.00019668,2]
[360023340,1746485438160,-500.0,0.00019668,2]
[360023342,1746485438169,-500.0,0.00019668,2]
[360023345,1746485438178,-385.77937392,0.00019668,2]
[360023347,1746485438188,-177.19611879,0.00019668,2]
[360023349,1746485438197,-500.0,0.00019668,2]
[360023351,1746485438206,-500.0,0.00019668,2]
[360023353,1746485438217,-500.0,0.00019668,2]
[360023355,1746485438226,-500.0,0.00019668,2]
[360023357,1746485438237,-500.0,0.00019668,2]
[360023359,1746485438247,-500.0,0.00019668,2]
[360023362,1746485438256,-500.0,0.00019668,2]
[360023364,1746485438265,-155.64348297,0.00019668,2]
[360023367,1746485438277,-344.35651703,0.00019668,2]
[360023370,1746485438287,-500.0,0.00019668,2]
[360023372,1746485438296,-500.0,0.00019668,2]
[360023374,1746485438306,-213.85581304,0.00019668,2]
[360023377,1746485438318,-286.14418696,0.00019668,2]
[360023379,1746485438327,-500.0,0.00019668,2]
[360023381,1746485438337,-500.0,0.00019668,2]
[360023383,1746485438346,-500.0,0.00019668,2]
[360023385,1746485438355,-500.0,0.00019668,2]
[360023387,1746485438364,-500.0,0.00019668,2]
[360023389,1746485438373,-500.0,0.00019668,2]
[360023391,1746485438382,-500.0,0.00019668,2]
[360023393,1746485438391,-500.0,0.00019668,2]
[360023395,1746485438400,-500.0,0.00019668,2]
[360023397,1746485438410,-441.5811886,0.00019668,2]
[360023400,1746485438432,-58.4188114,0.00019668,2]
[360023402,1746485438441,-500.0,0.00019668,2]
[360023404,1746485438450,-2204.88690452,0.00019669,2]
[360023505,1746485439453,-269.15017161,0.00019669,2]
[360023507,1746485439466,-1021.532452,0.00019669,2]
[360023509,1746485439490,-888.90588207,0.00019669,2]
[360023867,1746485443171,-250.0,0.00018444,2]
[360023869,1746485443181,-18972.15999037,0.00019669,2]
[360023872,1746485443191,-10000.0,0.00019673,2]
[360023874,1746485443200,-532.438195,0.00019731,2]
[360023876,1746485443210,-274.47783813,0.0002,2]
[360023878,1746485443219,-615.87836199,0.0002021,2]
[360023880,1746485443229,-500.0,0.00020387,2]
[360023882,1746485443239,-469.20812642,0.00020387,2]
[360023885,1746485443249,-500.0,0.00020387,2]
[360023888,1746485443258,-500.0,0.00020387,2]
[360023892,1746485443266,-500.0,0.00020387,2]
[360023895,1746485443277,-500.0,0.00020387,2]
[360023898,1746485443286,-500.0,0.00020387,2]
[360023902,1746485443296,-500.0,0.00020387,2]
[360023905,1746485443305,-500.0,0.00020387,2]
[360023908,1746485443315,-223.33821296,0.00020387,2]
[360023910,1746485443324,-500.0,0.00020387,2]
[360023912,1746485443334,-165.61349575,0.00020387,2]
[360023914,1746485443343,-500.0,0.00020387,2]
[360023916,1746485443353,-500.0,0.00020387,2]
[360023918,1746485443362,-500.0,0.00020387,2]
[360023920,1746485443371,-500.0,0.00020387,2]
[360023922,1746485443381,-500.0,0.00020387,2]
[360023924,1746485443391,-569.66979079,0.00020387,2]
[360023926,1746485443402,-500.0,0.00020486,2]
[360023928,1746485443412,-500.0,0.00020486,2]
[360023930,1746485443421,-615.87836199,0.00020539,2]
[360023932,1746485443431,-1000.0,0.00020548,2]
[360023934,1746485443440,-615.878362,0.00020607,2]
[360023936,1746485443450,-387.9,0.0002069,3]
[360023938,1746485443460,-323.25,0.0002069,3]
[360023940,1746485443469,-161.62,0.0002069,3]
[360023942,1746485443478,-484.89,0.0002069,3]
[360023944,1746485443488,-68143.0,0.000207,2]
[360023946,1746485443497,-24900.0,0.00020827,2]
[360023948,1746485443507,-9949.08385545,0.00021,7]
[360023950,1746485443517,-2000.0,0.0002137,2]
[360023952,1746485443526,-420.0,0.00021424,2]
[360023954,1746485443535,-14128.85866518,0.00021699,2]
[360023956,1746485443545,-4403.34905348,0.000219,2]
[360023958,1746485443554,-160.0,0.00021917,2]
[360023961,1746485443563,-500.0,0.00021918,2]
[360023962,1746485443572,-618.34983121,0.00021918,2]
[360023965,1746485443582,-500.0,0.00021918,2]
[360023967,1746485443591,-250.0,0.00021944,2]
[360023969,1746485443600,-349.30633596,0.00022,2]
[360023971,1746485443610,-19673.41104464,0.00022,2]
[360023973,1746485443621,-3225.39581361,0.00022,7]
[360023975,1746485443629,-841.77443764,0.00022,7]
[360023977,1746485443638,-12607.13495863,0.00022,7]
[360023979,1746485443648,-160.0,0.00022,7]
[360023981,1746485443657,-160.0,0.00022,7]
[360023983,1746485443666,-182.23035355,0.00022,7]
[360023985,1746485443675,-646.5,0.0002206,3]
[360023987,1746485443684,-323.24,0.0002206,3]
[360023989,1746485443694,-291.83325937,0.000221,2]
[360023991,1746485443706,-500.0,0.00022171,2]
[360023994,1746485443719,-3000.0,0.00022192,2]
[360023997,1746485443734,-859.98622067,0.00022298,2]
[360023999,1746485443748,-500.0,0.00022365,2]
[360024001,1746485443758,-500.0,0.00022365,2]
[360024003,1746485443771,-500.0,0.00022365,2]
[360024006,1746485443785,-500.0,0.00022365,2]
[360024008,1746485443798,-500.0,0.00022482,2]
[360024011,1746485443811,-208.306755,0.00022603,2]
[360024013,1746485443824,-247.41644802,0.00023,2]
[360024015,1746485443837,-5000.0,0.00023,2]
[360024016,1746485443851,-4000.0,0.00023014,2]
[360024017,1746485443865,-500.0,0.00023056,2]
[360024018,1746485443877,-500.0,0.00023056,2]
[360024019,1746485443889,-4403.34905348,0.00023082,2]
[360024020,1746485443902,-151.0,0.000231,7]
[360024021,1746485443915,-412.45881542,0.00023278,2]
[360024022,1746485443928,-160.0,0.00023287,2]
[360024023,1746485443940,-587.0,0.00023336,2]
[360024024,1746485443952,-500.0,0.00023418,2]
[360024026,1746485443962,-500.0,0.00023418,2]
[360024028,1746485443974,-500.80332184,0.00023418,2]
[360024031,1746485443986,-1128.68539538,0.00023443,2]
[360024033,1746485443998,-500.0,0.00023543,2]
[360024035,1746485444010,-263.61989077,0.00023543,2]
[360024038,1746485444022,-500.0,0.00023543,2]
[360024040,1746485444035,-160.0,0.00023607,2]
[360024042,1746485444048,-160.0,0.00023607,2]
[360024045,1746485444062,-160.0,0.00023611,2]
[360024047,1746485444075,-160.0,0.00023617,2]
[360024049,1746485444085,-160.0,0.00023617,2]
[360024052,1746485444097,-151.0,0.000237,7]
[360024054,1746485444107,-500.0,0.00023737,2]
[360024056,1746485444120,-5000.0,0.00023836,2]
[360024058,1746485444135,-800.0,0.00023891,2]
[360024061,1746485444149,-150.0,0.000239,2]
[360024063,1746485444160,-841.77443764,0.0002399,3]
[360024065,1746485444172,-12607.13495863,0.0002399,3]
[360024068,1746485444184,-160.0,0.0002399,3]
[360024070,1746485444197,-160.0,0.0002399,3]
[360024072,1746485444208,-160.0,0.0002399,3]
[360024074,1746485444219,-421.83547488,0.0002399,3]
[360024077,1746485444229,-160.0,0.0002399,3]
[360024079,1746485444240,-160.0,0.0002399,3]
[360024081,1746485444251,-182.23035355,0.0002399,3]
[360024083,1746485444263,-410.59218315,0.0002399,2]
[360024086,1746485444276,-45840.09985594,0.0002399,2]
[360024088,1746485444287,-160.0,0.00024,7]
[360024090,1746485444299,-421.83547488,0.00024,7]
[360024092,1746485444310,-160.0,0.00024,7]
[360024094,1746485444322,-500.0,0.00024116,2]
[360024097,1746485444333,-151.0,0.000242,7]
[360024099,1746485444344,-4403.34905348,0.00024264,2]
[360024101,1746485444355,-160.0,0.00024657,2]
[360024103,1746485444366,-6000.0,0.00024658,2]
[360024105,1746485444378,-151.0,0.000247,9]
[360024108,1746485444389,-10228.2734605,0.000248,2]
[360024110,1746485444400,-3225.26490297,0.000248,11]
[360024112,1746485444411,-3225.26490285,0.000248,11]
[360024114,1746485444422,-3225.26490285,0.000248,11]
[360024116,1746485444433,-3225.26490285,0.000248,11]
[360024118,1746485444443,-3225.26490285,0.000248,11]
[360024121,1746485444455,-3225.26490285,0.000248,11]
[360024123,1746485444465,-3225.26490285,0.000248,11]
[360024125,1746485444476,-3225.26490285,0.000248,11]
[360024127,1746485444488,-1278.53418256,0.00024849,2]
[360024129,1746485444499,-151.0,0.00024859,7]
[360024131,1746485444510,-151.0,0.00024859,7]
[360024134,1746485444522,-152.667299,0.00024859,7]
[360024136,1746485444533,-7823.015753,0.00024859,2]
[360024138,1746485444544,-151.0,0.00024869,7]